{"text_format":"3","workbook":"xlsx","n_sheets":2,"sheets":["Sledovanie úbytku hmotnosti","výpočty"],"not_rendered":{"charts":1,"defined_names":10},"read":"whole","date_system":"1900"}

{"sheet":"Sledovanie úbytku hmotnosti","index":0,"n_rows":19,"n_cols":9,"rows_kept":19,"merged":[[0,3,0,7],[0,8,0,9],[1,3,2,9]]}
[null,"CIEĽOVÁ HMOTNOSŤ","ZOBRAZENIE GRAFU","Meno",{"$nulls":4},"ÚBYTKU HMOTNOSTI"]
[{"$nulls":3},"SLEDOVANIE"]
[null,{"v":172,"d":"172.0"},"TÝŽDENNÝ"]
[null,"ZOBRAZIŤ CIEĽOVÚ HMOTNOSŤ","Áno"]
[null,"V tejto bunke je graf sledovania hmotnosti, ktorý sleduje aktuálnu hmotnosť. Ak chcete zobraziť čiaru Cieľová hmotnosť cez oblasť grafu, vyberte v bunke C4 možnosť Áno."]
[]
[null,"DÁTUM","HMOTNOSŤ"]
[null,{"$f":"TODAY()-77","v":"2022-01-15"},{"v":176,"d":"176.0"}]
[null,{"$f":"TODAY()-70","v":"2022-01-22"},{"v":176,"d":"176.0"}]
[null,{"$f":"TODAY()-63","v":"2022-01-29"},177.6]
[null,{"$f":"TODAY()-56","v":"2022-02-05"},176.5]
[null,{"$f":"TODAY()-49","v":"2022-02-12"},176.1]
[null,{"$f":"TODAY()-42","v":"2022-02-19"},{"v":174,"d":"174.0"}]
[null,{"$f":"TODAY()-35","v":"2022-02-26"},173.5]
[null,{"$f":"TODAY()-28","v":"2022-03-05"},{"v":173,"d":"173.0"}]
[null,{"$f":"TODAY()-21","v":"2022-03-12"},{"v":172,"d":"172.0"}]
[null,{"$f":"TODAY()-14","v":"2022-03-19"},{"v":172,"d":"172.0"}]
[null,{"$f":"TODAY()-7","v":"2022-03-26"},{"v":173,"d":"173.0"}]
[null,{"$f":"TODAY()","v":"2022-04-02"},{"v":172,"d":"172.0"}]

{"sheet":"výpočty","index":1,"n_rows":107,"n_cols":17,"rows_kept":107,"hidden":true}
["*** Hárok má zostať skrytý ***"]
[]
[{"$f":"COUNTIF(A5:A107,FALSE)","v":12},"Obdobia","Hodnoty",{"$nulls":3},{"$f":"COUNTIF(H5:H28,\">\"&0)","v":4},"Obdobia",null,"Hodnoty"]
[null,"Týždeň",null,null,{"$f":"IFERROR(IF(ZobraziťCieľovúHmotnosť=\"Áno\", TRUE, FALSE),FALSE)","v":true},null,null,"Mesiac","Koniec mesiaca"]
[{"$f":"FALSE","v":false},{"$f":"IFERROR(IF(LEN('Sledovanie úbytku hmotnosti'!$B8)=0,TODAY(),'Sledovanie úbytku hmotnosti'!$B8),TODAY())","v":"2022-01-15"},{"$f":"IFERROR(IF(LEN('Sledovanie úbytku hmotnosti'!$C8)=0,CieľováHmotnosť,'Sledovanie úbytku hmotnosti'!$C8),0)","v":176},{"$f":"IFERROR(IF(MIN(ObdobiaGrafu)=0,TODAY(),MIN(ObdobiaGrafu)),TODAY())","v":"2022-01-15"},{"$f":"IFERROR(IF($A$5,0,IF($E$4,CieľováHmotnosť,NA())),0)","v":172},null,null,{"$f":"IFERROR(IF($A$5,TODAY(),DATE(YEAR($B5),MONTH($B5),1)),\"\")","v":"2022-01-01"},{"$f":"IFERROR(IF($A$5,TODAY(),EOMONTH($H5,0)),\"\")","v":"2022-01-31"},{"$f":"IFERROR(IF($A$5,0,AVERAGEIFS(Hmotnosť[HMOTNOSŤ],Hmotnosť[DÁTUM],\">=\"&$H5,Hmotnosť[DÁTUM],\"<=\"&$I5)),NA())","v":176.53333333333333}]
[{"$f":"IF((LEN('Sledovanie úbytku hmotnosti'!$C9)=0),TRUE)","v":false},{"$f":"IFERROR(IF(A6,0,IF(LEN('Sledovanie úbytku hmotnosti'!$B9)=0,0,'Sledovanie úbytku hmotnosti'!$B9)),\"\")","v":"2022-01-22"},{"$f":"IFERROR(IF(A6,0,IF(LEN('Sledovanie úbytku hmotnosti'!$C9)=0,0,'Sledovanie úbytku hmotnosti'!$C9)),\"\")","v":176},{"$f":"IFERROR(IF(MAX(ObdobiaGrafu)=0,TODAY(),MAX(ObdobiaGrafu)),TODAY())","v":"2022-04-02"},{"$f":"IFERROR(IF($A$5,0,IF($E$4,CieľováHmotnosť,NA())),0)","v":172},null,null,{"$f":"IF($I5+1>MAX($B:$B),NA(),$I5+1)","v":"2022-02-01"},{"$f":"EOMONTH($H6,0)","v":"2022-02-28"},{"$f":"IFERROR(AVERAGEIFS(Hmotnosť[HMOTNOSŤ],Hmotnosť[DÁTUM],\">=\"&$H6,Hmotnosť[DÁTUM],\"<=\"&$I6),NA())","v":175.025}]
[{"$f":"IF((LEN('Sledovanie úbytku hmotnosti'!$C10)=0),TRUE)","v":false},{"$f":"IFERROR(IF(A7,0,IF(LEN('Sledovanie úbytku hmotnosti'!$B10)=0,0,'Sledovanie úbytku hmotnosti'!$B10)),\"\")","v":"2022-01-29"},{"$f":"IFERROR(IF(A7,0,IF(LEN('Sledovanie úbytku hmotnosti'!$C10)=0,0,'Sledovanie úbytku hmotnosti'!$C10)),\"\")","v":177.6},{"$nulls":4},"2022-03-01","2022-03-31",{"$f":"IFERROR(AVERAGEIFS(Hmotnosť[HMOTNOSŤ],Hmotnosť[DÁTUM],\">=\"&$H7,Hmotnosť[DÁTUM],\"<=\"&$I7),NA())","v":172.5}]
[{"$f":"IF((LEN('Sledovanie úbytku hmotnosti'!$C11)=0),TRUE)","v":false},{"$f":"IFERROR(IF(A8,0,IF(LEN('Sledovanie úbytku hmotnosti'!$B11)=0,0,'Sledovanie úbytku hmotnosti'!$B11)),\"\")","v":"2022-02-05"},{"$f":"IFERROR(IF(A8,0,IF(LEN('Sledovanie úbytku hmotnosti'!$C11)=0,0,'Sledovanie úbytku hmotnosti'!$C11)),\"\")","v":176.5},{"$nulls":4},"2022-04-01","2022-04-30",{"$f":"IFERROR(AVERAGEIFS(Hmotnosť[HMOTNOSŤ],Hmotnosť[DÁTUM],\">=\"&$H8,Hmotnosť[DÁTUM],\"<=\"&$I8),NA())","v":172}]
[{"$f":"IF((LEN('Sledovanie úbytku hmotnosti'!$C12)=0),TRUE)","v":false},{"$f":"IFERROR(IF(A9,0,IF(LEN('Sledovanie úbytku hmotnosti'!$B12)=0,0,'Sledovanie úbytku hmotnosti'!$B12)),\"\")","v":"2022-02-12"},{"$f":"IFERROR(IF(A9,0,IF(LEN('Sledovanie úbytku hmotnosti'!$C12)=0,0,'Sledovanie úbytku hmotnosti'!$C12)),\"\")","v":176.1},{"$nulls":4},{"$error":"#N/A"},{"$error":"#N/A"},{"$f":"IFERROR(AVERAGEIFS(Hmotnosť[HMOTNOSŤ],Hmotnosť[DÁTUM],\">=\"&$H9,Hmotnosť[DÁTUM],\"<=\"&$I9),NA())","v":{"$error":"#N/A"}}]
[{"$f":"IF((LEN('Sledovanie úbytku hmotnosti'!$C13)=0),TRUE)","v":false},{"$f":"IFERROR(IF(A10,0,IF(LEN('Sledovanie úbytku hmotnosti'!$B13)=0,0,'Sledovanie úbytku hmotnosti'!$B13)),\"\")","v":"2022-02-19"},{"$f":"IFERROR(IF(A10,0,IF(LEN('Sledovanie úbytku hmotnosti'!$C13)=0,0,'Sledovanie úbytku hmotnosti'!$C13)),\"\")","v":174},{"$nulls":4},{"$error":"#N/A"},{"$error":"#N/A"},{"$f":"IFERROR(AVERAGEIFS(Hmotnosť[HMOTNOSŤ],Hmotnosť[DÁTUM],\">=\"&$H10,Hmotnosť[DÁTUM],\"<=\"&$I10),NA())","v":{"$error":"#N/A"}}]
[{"$f":"IF((LEN('Sledovanie úbytku hmotnosti'!$C14)=0),TRUE)","v":false},{"$f":"IFERROR(IF(A11,0,IF(LEN('Sledovanie úbytku hmotnosti'!$B14)=0,0,'Sledovanie úbytku hmotnosti'!$B14)),\"\")","v":"2022-02-26"},{"$f":"IFERROR(IF(A11,0,IF(LEN('Sledovanie úbytku hmotnosti'!$C14)=0,0,'Sledovanie úbytku hmotnosti'!$C14)),\"\")","v":173.5},{"$nulls":4},{"$error":"#N/A"},{"$error":"#N/A"},{"$f":"IFERROR(AVERAGEIFS(Hmotnosť[HMOTNOSŤ],Hmotnosť[DÁTUM],\">=\"&$H11,Hmotnosť[DÁTUM],\"<=\"&$I11),NA())","v":{"$error":"#N/A"}},{"$nulls":6},{"$f":"MAX($B:$B)","v":"2022-04-02"}]
[{"$f":"IF((LEN('Sledovanie úbytku hmotnosti'!$C15)=0),TRUE)","v":false},{"$f":"IFERROR(IF(A12,0,IF(LEN('Sledovanie úbytku hmotnosti'!$B15)=0,0,'Sledovanie úbytku hmotnosti'!$B15)),\"\")","v":"2022-03-05"},{"$f":"IFERROR(IF(A12,0,IF(LEN('Sledovanie úbytku hmotnosti'!$C15)=0,0,'Sledovanie úbytku hmotnosti'!$C15)),\"\")","v":173},{"$nulls":4},{"$error":"#N/A"},{"$error":"#N/A"},{"$f":"IFERROR(AVERAGEIFS(Hmotnosť[HMOTNOSŤ],Hmotnosť[DÁTUM],\">=\"&$H12,Hmotnosť[DÁTUM],\"<=\"&$I12),NA())","v":{"$error":"#N/A"}}]
[{"$f":"IF((LEN('Sledovanie úbytku hmotnosti'!$C16)=0),TRUE)","v":false},{"$f":"IFERROR(IF(A13,0,IF(LEN('Sledovanie úbytku hmotnosti'!$B16)=0,0,'Sledovanie úbytku hmotnosti'!$B16)),\"\")","v":"2022-03-12"},{"$f":"IFERROR(IF(A13,0,IF(LEN('Sledovanie úbytku hmotnosti'!$C16)=0,0,'Sledovanie úbytku hmotnosti'!$C16)),\"\")","v":172},{"$nulls":4},{"$error":"#N/A"},{"$error":"#N/A"},{"$f":"IFERROR(AVERAGEIFS(Hmotnosť[HMOTNOSŤ],Hmotnosť[DÁTUM],\">=\"&$H13,Hmotnosť[DÁTUM],\"<=\"&$I13),NA())","v":{"$error":"#N/A"}}]
[{"$f":"IF((LEN('Sledovanie úbytku hmotnosti'!$C17)=0),TRUE)","v":false},{"$f":"IFERROR(IF(A14,0,IF(LEN('Sledovanie úbytku hmotnosti'!$B17)=0,0,'Sledovanie úbytku hmotnosti'!$B17)),\"\")","v":"2022-03-19"},{"$f":"IFERROR(IF(A14,0,IF(LEN('Sledovanie úbytku hmotnosti'!$C17)=0,0,'Sledovanie úbytku hmotnosti'!$C17)),\"\")","v":172},{"$nulls":4},{"$error":"#N/A"},{"$error":"#N/A"},{"$f":"IFERROR(AVERAGEIFS(Hmotnosť[HMOTNOSŤ],Hmotnosť[DÁTUM],\">=\"&$H14,Hmotnosť[DÁTUM],\"<=\"&$I14),NA())","v":{"$error":"#N/A"}}]
[{"$f":"IF((LEN('Sledovanie úbytku hmotnosti'!$C18)=0),TRUE)","v":false},{"$f":"IFERROR(IF(A15,0,IF(LEN('Sledovanie úbytku hmotnosti'!$B18)=0,0,'Sledovanie úbytku hmotnosti'!$B18)),\"\")","v":"2022-03-26"},{"$f":"IFERROR(IF(A15,0,IF(LEN('Sledovanie úbytku hmotnosti'!$C18)=0,0,'Sledovanie úbytku hmotnosti'!$C18)),\"\")","v":173},{"$nulls":4},{"$error":"#N/A"},{"$error":"#N/A"},{"$f":"IFERROR(AVERAGEIFS(Hmotnosť[HMOTNOSŤ],Hmotnosť[DÁTUM],\">=\"&$H15,Hmotnosť[DÁTUM],\"<=\"&$I15),NA())","v":{"$error":"#N/A"}}]
[{"$f":"IF((LEN('Sledovanie úbytku hmotnosti'!$C19)=0),TRUE)","v":false},{"$f":"IFERROR(IF(A16,0,IF(LEN('Sledovanie úbytku hmotnosti'!$B19)=0,0,'Sledovanie úbytku hmotnosti'!$B19)),\"\")","v":"2022-04-02"},{"$f":"IFERROR(IF(A16,0,IF(LEN('Sledovanie úbytku hmotnosti'!$C19)=0,0,'Sledovanie úbytku hmotnosti'!$C19)),\"\")","v":172},{"$nulls":4},{"$error":"#N/A"},{"$error":"#N/A"},{"$f":"IFERROR(AVERAGEIFS(Hmotnosť[HMOTNOSŤ],Hmotnosť[DÁTUM],\">=\"&$H16,Hmotnosť[DÁTUM],\"<=\"&$I16),NA())","v":{"$error":"#N/A"}}]
[{"$f":"IF((LEN('Sledovanie úbytku hmotnosti'!$C20)=0),TRUE)","v":true},{"$f":"IFERROR(IF(A17,0,IF(LEN('Sledovanie úbytku hmotnosti'!$B20)=0,0,'Sledovanie úbytku hmotnosti'!$B20)),\"\")","v":"00:00:00"},{"$f":"IFERROR(IF(A17,0,IF(LEN('Sledovanie úbytku hmotnosti'!$C20)=0,0,'Sledovanie úbytku hmotnosti'!$C20)),\"\")","v":0},{"$nulls":4},{"$error":"#N/A"},{"$error":"#N/A"},{"$f":"IFERROR(AVERAGEIFS(Hmotnosť[HMOTNOSŤ],Hmotnosť[DÁTUM],\">=\"&$H17,Hmotnosť[DÁTUM],\"<=\"&$I17),NA())","v":{"$error":"#N/A"}}]
[{"$f":"IF((LEN('Sledovanie úbytku hmotnosti'!$C21)=0),TRUE)","v":true},{"$f":"IFERROR(IF(A18,0,IF(LEN('Sledovanie úbytku hmotnosti'!$B21)=0,0,'Sledovanie úbytku hmotnosti'!$B21)),\"\")","v":"00:00:00"},{"$f":"IFERROR(IF(A18,0,IF(LEN('Sledovanie úbytku hmotnosti'!$C21)=0,0,'Sledovanie úbytku hmotnosti'!$C21)),\"\")","v":0},{"$nulls":4},{"$error":"#N/A"},{"$error":"#N/A"},{"$f":"IFERROR(AVERAGEIFS(Hmotnosť[HMOTNOSŤ],Hmotnosť[DÁTUM],\">=\"&$H18,Hmotnosť[DÁTUM],\"<=\"&$I18),NA())","v":{"$error":"#N/A"}}]
[{"$f":"IF((LEN('Sledovanie úbytku hmotnosti'!$C22)=0),TRUE)","v":true},{"$f":"IFERROR(IF(A19,0,IF(LEN('Sledovanie úbytku hmotnosti'!$B22)=0,0,'Sledovanie úbytku hmotnosti'!$B22)),\"\")","v":"00:00:00"},{"$f":"IFERROR(IF(A19,0,IF(LEN('Sledovanie úbytku hmotnosti'!$C22)=0,0,'Sledovanie úbytku hmotnosti'!$C22)),\"\")","v":0},{"$nulls":4},{"$error":"#N/A"},{"$error":"#N/A"},{"$f":"IFERROR(AVERAGEIFS(Hmotnosť[HMOTNOSŤ],Hmotnosť[DÁTUM],\">=\"&$H19,Hmotnosť[DÁTUM],\"<=\"&$I19),NA())","v":{"$error":"#N/A"}}]
[{"$f":"IF((LEN('Sledovanie úbytku hmotnosti'!$C23)=0),TRUE)","v":true},{"$f":"IFERROR(IF(A20,0,IF(LEN('Sledovanie úbytku hmotnosti'!$B23)=0,0,'Sledovanie úbytku hmotnosti'!$B23)),\"\")","v":"00:00:00"},{"$f":"IFERROR(IF(A20,0,IF(LEN('Sledovanie úbytku hmotnosti'!$C23)=0,0,'Sledovanie úbytku hmotnosti'!$C23)),\"\")","v":0},{"$nulls":4},{"$error":"#N/A"},{"$error":"#N/A"},{"$f":"IFERROR(AVERAGEIFS(Hmotnosť[HMOTNOSŤ],Hmotnosť[DÁTUM],\">=\"&$H20,Hmotnosť[DÁTUM],\"<=\"&$I20),NA())","v":{"$error":"#N/A"}}]
[{"$f":"IF((LEN('Sledovanie úbytku hmotnosti'!$C24)=0),TRUE)","v":true},{"$f":"IFERROR(IF(A21,0,IF(LEN('Sledovanie úbytku hmotnosti'!$B24)=0,0,'Sledovanie úbytku hmotnosti'!$B24)),\"\")","v":"00:00:00"},{"$f":"IFERROR(IF(A21,0,IF(LEN('Sledovanie úbytku hmotnosti'!$C24)=0,0,'Sledovanie úbytku hmotnosti'!$C24)),\"\")","v":0},{"$nulls":4},{"$error":"#N/A"},{"$error":"#N/A"},{"$f":"IFERROR(AVERAGEIFS(Hmotnosť[HMOTNOSŤ],Hmotnosť[DÁTUM],\">=\"&$H21,Hmotnosť[DÁTUM],\"<=\"&$I21),NA())","v":{"$error":"#N/A"}}]
[{"$f":"IF((LEN('Sledovanie úbytku hmotnosti'!$C25)=0),TRUE)","v":true},{"$f":"IFERROR(IF(A22,0,IF(LEN('Sledovanie úbytku hmotnosti'!$B25)=0,0,'Sledovanie úbytku hmotnosti'!$B25)),\"\")","v":"00:00:00"},{"$f":"IFERROR(IF(A22,0,IF(LEN('Sledovanie úbytku hmotnosti'!$C25)=0,0,'Sledovanie úbytku hmotnosti'!$C25)),\"\")","v":0},{"$nulls":4},{"$error":"#N/A"},{"$error":"#N/A"},{"$f":"IFERROR(AVERAGEIFS(Hmotnosť[HMOTNOSŤ],Hmotnosť[DÁTUM],\">=\"&$H22,Hmotnosť[DÁTUM],\"<=\"&$I22),NA())","v":{"$error":"#N/A"}}]
[{"$f":"IF((LEN('Sledovanie úbytku hmotnosti'!$C26)=0),TRUE)","v":true},{"$f":"IFERROR(IF(A23,0,IF(LEN('Sledovanie úbytku hmotnosti'!$B26)=0,0,'Sledovanie úbytku hmotnosti'!$B26)),\"\")","v":"00:00:00"},{"$f":"IFERROR(IF(A23,0,IF(LEN('Sledovanie úbytku hmotnosti'!$C26)=0,0,'Sledovanie úbytku hmotnosti'!$C26)),\"\")","v":0},{"$nulls":4},{"$error":"#N/A"},{"$error":"#N/A"},{"$f":"IFERROR(AVERAGEIFS(Hmotnosť[HMOTNOSŤ],Hmotnosť[DÁTUM],\">=\"&$H23,Hmotnosť[DÁTUM],\"<=\"&$I23),NA())","v":{"$error":"#N/A"}}]
[{"$f":"IF((LEN('Sledovanie úbytku hmotnosti'!$C27)=0),TRUE)","v":true},{"$f":"IFERROR(IF(A24,0,IF(LEN('Sledovanie úbytku hmotnosti'!$B27)=0,0,'Sledovanie úbytku hmotnosti'!$B27)),\"\")","v":"00:00:00"},{"$f":"IFERROR(IF(A24,0,IF(LEN('Sledovanie úbytku hmotnosti'!$C27)=0,0,'Sledovanie úbytku hmotnosti'!$C27)),\"\")","v":0},{"$nulls":4},{"$error":"#N/A"},{"$error":"#N/A"},{"$f":"IFERROR(AVERAGEIFS(Hmotnosť[HMOTNOSŤ],Hmotnosť[DÁTUM],\">=\"&$H24,Hmotnosť[DÁTUM],\"<=\"&$I24),NA())","v":{"$error":"#N/A"}}]
[{"$f":"IF((LEN('Sledovanie úbytku hmotnosti'!$C28)=0),TRUE)","v":true},{"$f":"IFERROR(IF(A25,0,IF(LEN('Sledovanie úbytku hmotnosti'!$B28)=0,0,'Sledovanie úbytku hmotnosti'!$B28)),\"\")","v":"00:00:00"},{"$f":"IFERROR(IF(A25,0,IF(LEN('Sledovanie úbytku hmotnosti'!$C28)=0,0,'Sledovanie úbytku hmotnosti'!$C28)),\"\")","v":0},{"$nulls":4},{"$error":"#N/A"},{"$error":"#N/A"},{"$f":"IFERROR(AVERAGEIFS(Hmotnosť[HMOTNOSŤ],Hmotnosť[DÁTUM],\">=\"&$H25,Hmotnosť[DÁTUM],\"<=\"&$I25),NA())","v":{"$error":"#N/A"}}]
[{"$f":"IF((LEN('Sledovanie úbytku hmotnosti'!$C29)=0),TRUE)","v":true},{"$f":"IFERROR(IF(A26,0,IF(LEN('Sledovanie úbytku hmotnosti'!$B29)=0,0,'Sledovanie úbytku hmotnosti'!$B29)),\"\")","v":"00:00:00"},{"$f":"IFERROR(IF(A26,0,IF(LEN('Sledovanie úbytku hmotnosti'!$C29)=0,0,'Sledovanie úbytku hmotnosti'!$C29)),\"\")","v":0},{"$nulls":4},{"$error":"#N/A"},{"$error":"#N/A"},{"$f":"IFERROR(AVERAGEIFS(Hmotnosť[HMOTNOSŤ],Hmotnosť[DÁTUM],\">=\"&$H26,Hmotnosť[DÁTUM],\"<=\"&$I26),NA())","v":{"$error":"#N/A"}}]
[{"$f":"IF((LEN('Sledovanie úbytku hmotnosti'!$C30)=0),TRUE)","v":true},{"$f":"IFERROR(IF(A27,0,IF(LEN('Sledovanie úbytku hmotnosti'!$B30)=0,0,'Sledovanie úbytku hmotnosti'!$B30)),\"\")","v":"00:00:00"},{"$f":"IFERROR(IF(A27,0,IF(LEN('Sledovanie úbytku hmotnosti'!$C30)=0,0,'Sledovanie úbytku hmotnosti'!$C30)),\"\")","v":0},{"$nulls":4},{"$error":"#N/A"},{"$error":"#N/A"},{"$f":"IFERROR(AVERAGEIFS(Hmotnosť[HMOTNOSŤ],Hmotnosť[DÁTUM],\">=\"&$H27,Hmotnosť[DÁTUM],\"<=\"&$I27),NA())","v":{"$error":"#N/A"}}]
[{"$f":"IF((LEN('Sledovanie úbytku hmotnosti'!$C31)=0),TRUE)","v":true},{"$f":"IFERROR(IF(A28,0,IF(LEN('Sledovanie úbytku hmotnosti'!$B31)=0,0,'Sledovanie úbytku hmotnosti'!$B31)),\"\")","v":"00:00:00"},{"$f":"IFERROR(IF(A28,0,IF(LEN('Sledovanie úbytku hmotnosti'!$C31)=0,0,'Sledovanie úbytku hmotnosti'!$C31)),\"\")","v":0},{"$nulls":4},{"$error":"#N/A"},{"$error":"#N/A"},{"$f":"IFERROR(AVERAGEIFS(Hmotnosť[HMOTNOSŤ],Hmotnosť[DÁTUM],\">=\"&$H28,Hmotnosť[DÁTUM],\"<=\"&$I28),NA())","v":{"$error":"#N/A"}}]
[{"$f":"IF((LEN('Sledovanie úbytku hmotnosti'!$C32)=0),TRUE)","v":true},{"$f":"IFERROR(IF(A29,0,IF(LEN('Sledovanie úbytku hmotnosti'!$B32)=0,0,'Sledovanie úbytku hmotnosti'!$B32)),\"\")","v":"00:00:00"},{"$f":"IFERROR(IF(A29,0,IF(LEN('Sledovanie úbytku hmotnosti'!$C32)=0,0,'Sledovanie úbytku hmotnosti'!$C32)),\"\")","v":0}]
[{"$f":"IF((LEN('Sledovanie úbytku hmotnosti'!$C33)=0),TRUE)","v":true},{"$f":"IFERROR(IF(A30,0,IF(LEN('Sledovanie úbytku hmotnosti'!$B33)=0,0,'Sledovanie úbytku hmotnosti'!$B33)),\"\")","v":"00:00:00"},{"$f":"IFERROR(IF(A30,0,IF(LEN('Sledovanie úbytku hmotnosti'!$C33)=0,0,'Sledovanie úbytku hmotnosti'!$C33)),\"\")","v":0}]
[{"$f":"IF((LEN('Sledovanie úbytku hmotnosti'!$C34)=0),TRUE)","v":true},{"$f":"IFERROR(IF(A31,0,IF(LEN('Sledovanie úbytku hmotnosti'!$B34)=0,0,'Sledovanie úbytku hmotnosti'!$B34)),\"\")","v":"00:00:00"},{"$f":"IFERROR(IF(A31,0,IF(LEN('Sledovanie úbytku hmotnosti'!$C34)=0,0,'Sledovanie úbytku hmotnosti'!$C34)),\"\")","v":0}]
[{"$f":"IF((LEN('Sledovanie úbytku hmotnosti'!$C35)=0),TRUE)","v":true},{"$f":"IFERROR(IF(A32,0,IF(LEN('Sledovanie úbytku hmotnosti'!$B35)=0,0,'Sledovanie úbytku hmotnosti'!$B35)),\"\")","v":"00:00:00"},{"$f":"IFERROR(IF(A32,0,IF(LEN('Sledovanie úbytku hmotnosti'!$C35)=0,0,'Sledovanie úbytku hmotnosti'!$C35)),\"\")","v":0}]
[{"$f":"IF((LEN('Sledovanie úbytku hmotnosti'!$C36)=0),TRUE)","v":true},{"$f":"IFERROR(IF(A33,0,IF(LEN('Sledovanie úbytku hmotnosti'!$B36)=0,0,'Sledovanie úbytku hmotnosti'!$B36)),\"\")","v":"00:00:00"},{"$f":"IFERROR(IF(A33,0,IF(LEN('Sledovanie úbytku hmotnosti'!$C36)=0,0,'Sledovanie úbytku hmotnosti'!$C36)),\"\")","v":0}]
[{"$f":"IF((LEN('Sledovanie úbytku hmotnosti'!$C37)=0),TRUE)","v":true},{"$f":"IFERROR(IF(A34,0,IF(LEN('Sledovanie úbytku hmotnosti'!$B37)=0,0,'Sledovanie úbytku hmotnosti'!$B37)),\"\")","v":"00:00:00"},{"$f":"IFERROR(IF(A34,0,IF(LEN('Sledovanie úbytku hmotnosti'!$C37)=0,0,'Sledovanie úbytku hmotnosti'!$C37)),\"\")","v":0}]
[{"$f":"IF((LEN('Sledovanie úbytku hmotnosti'!$C38)=0),TRUE)","v":true},{"$f":"IFERROR(IF(A35,0,IF(LEN('Sledovanie úbytku hmotnosti'!$B38)=0,0,'Sledovanie úbytku hmotnosti'!$B38)),\"\")","v":"00:00:00"},{"$f":"IFERROR(IF(A35,0,IF(LEN('Sledovanie úbytku hmotnosti'!$C38)=0,0,'Sledovanie úbytku hmotnosti'!$C38)),\"\")","v":0}]
[{"$f":"IF((LEN('Sledovanie úbytku hmotnosti'!$C39)=0),TRUE)","v":true},{"$f":"IFERROR(IF(A36,0,IF(LEN('Sledovanie úbytku hmotnosti'!$B39)=0,0,'Sledovanie úbytku hmotnosti'!$B39)),\"\")","v":"00:00:00"},{"$f":"IFERROR(IF(A36,0,IF(LEN('Sledovanie úbytku hmotnosti'!$C39)=0,0,'Sledovanie úbytku hmotnosti'!$C39)),\"\")","v":0}]
[{"$f":"IF((LEN('Sledovanie úbytku hmotnosti'!$C40)=0),TRUE)","v":true},{"$f":"IFERROR(IF(A37,0,IF(LEN('Sledovanie úbytku hmotnosti'!$B40)=0,0,'Sledovanie úbytku hmotnosti'!$B40)),\"\")","v":"00:00:00"},{"$f":"IFERROR(IF(A37,0,IF(LEN('Sledovanie úbytku hmotnosti'!$C40)=0,0,'Sledovanie úbytku hmotnosti'!$C40)),\"\")","v":0}]
[{"$f":"IF((LEN('Sledovanie úbytku hmotnosti'!$C41)=0),TRUE)","v":true},{"$f":"IFERROR(IF(A38,0,IF(LEN('Sledovanie úbytku hmotnosti'!$B41)=0,0,'Sledovanie úbytku hmotnosti'!$B41)),\"\")","v":"00:00:00"},{"$f":"IFERROR(IF(A38,0,IF(LEN('Sledovanie úbytku hmotnosti'!$C41)=0,0,'Sledovanie úbytku hmotnosti'!$C41)),\"\")","v":0}]
[{"$f":"IF((LEN('Sledovanie úbytku hmotnosti'!$C42)=0),TRUE)","v":true},{"$f":"IFERROR(IF(A39,0,IF(LEN('Sledovanie úbytku hmotnosti'!$B42)=0,0,'Sledovanie úbytku hmotnosti'!$B42)),\"\")","v":"00:00:00"},{"$f":"IFERROR(IF(A39,0,IF(LEN('Sledovanie úbytku hmotnosti'!$C42)=0,0,'Sledovanie úbytku hmotnosti'!$C42)),\"\")","v":0}]
[{"$f":"IF((LEN('Sledovanie úbytku hmotnosti'!$C43)=0),TRUE)","v":true},{"$f":"IFERROR(IF(A40,0,IF(LEN('Sledovanie úbytku hmotnosti'!$B43)=0,0,'Sledovanie úbytku hmotnosti'!$B43)),\"\")","v":"00:00:00"},{"$f":"IFERROR(IF(A40,0,IF(LEN('Sledovanie úbytku hmotnosti'!$C43)=0,0,'Sledovanie úbytku hmotnosti'!$C43)),\"\")","v":0}]
[{"$f":"IF((LEN('Sledovanie úbytku hmotnosti'!$C44)=0),TRUE)","v":true},{"$f":"IFERROR(IF(A41,0,IF(LEN('Sledovanie úbytku hmotnosti'!$B44)=0,0,'Sledovanie úbytku hmotnosti'!$B44)),\"\")","v":"00:00:00"},{"$f":"IFERROR(IF(A41,0,IF(LEN('Sledovanie úbytku hmotnosti'!$C44)=0,0,'Sledovanie úbytku hmotnosti'!$C44)),\"\")","v":0}]
[{"$f":"IF((LEN('Sledovanie úbytku hmotnosti'!$C45)=0),TRUE)","v":true},{"$f":"IFERROR(IF(A42,0,IF(LEN('Sledovanie úbytku hmotnosti'!$B45)=0,0,'Sledovanie úbytku hmotnosti'!$B45)),\"\")","v":"00:00:00"},{"$f":"IFERROR(IF(A42,0,IF(LEN('Sledovanie úbytku hmotnosti'!$C45)=0,0,'Sledovanie úbytku hmotnosti'!$C45)),\"\")","v":0}]
[{"$f":"IF((LEN('Sledovanie úbytku hmotnosti'!$C46)=0),TRUE)","v":true},{"$f":"IFERROR(IF(A43,0,IF(LEN('Sledovanie úbytku hmotnosti'!$B46)=0,0,'Sledovanie úbytku hmotnosti'!$B46)),\"\")","v":"00:00:00"},{"$f":"IFERROR(IF(A43,0,IF(LEN('Sledovanie úbytku hmotnosti'!$C46)=0,0,'Sledovanie úbytku hmotnosti'!$C46)),\"\")","v":0}]
[{"$f":"IF((LEN('Sledovanie úbytku hmotnosti'!$C47)=0),TRUE)","v":true},{"$f":"IFERROR(IF(A44,0,IF(LEN('Sledovanie úbytku hmotnosti'!$B47)=0,0,'Sledovanie úbytku hmotnosti'!$B47)),\"\")","v":"00:00:00"},{"$f":"IFERROR(IF(A44,0,IF(LEN('Sledovanie úbytku hmotnosti'!$C47)=0,0,'Sledovanie úbytku hmotnosti'!$C47)),\"\")","v":0}]
[{"$f":"IF((LEN('Sledovanie úbytku hmotnosti'!$C48)=0),TRUE)","v":true},{"$f":"IFERROR(IF(A45,0,IF(LEN('Sledovanie úbytku hmotnosti'!$B48)=0,0,'Sledovanie úbytku hmotnosti'!$B48)),\"\")","v":"00:00:00"},{"$f":"IFERROR(IF(A45,0,IF(LEN('Sledovanie úbytku hmotnosti'!$C48)=0,0,'Sledovanie úbytku hmotnosti'!$C48)),\"\")","v":0}]
[{"$f":"IF((LEN('Sledovanie úbytku hmotnosti'!$C49)=0),TRUE)","v":true},{"$f":"IFERROR(IF(A46,0,IF(LEN('Sledovanie úbytku hmotnosti'!$B49)=0,0,'Sledovanie úbytku hmotnosti'!$B49)),\"\")","v":"00:00:00"},{"$f":"IFERROR(IF(A46,0,IF(LEN('Sledovanie úbytku hmotnosti'!$C49)=0,0,'Sledovanie úbytku hmotnosti'!$C49)),\"\")","v":0}]
[{"$f":"IF((LEN('Sledovanie úbytku hmotnosti'!$C50)=0),TRUE)","v":true},{"$f":"IFERROR(IF(A47,0,IF(LEN('Sledovanie úbytku hmotnosti'!$B50)=0,0,'Sledovanie úbytku hmotnosti'!$B50)),\"\")","v":"00:00:00"},{"$f":"IFERROR(IF(A47,0,IF(LEN('Sledovanie úbytku hmotnosti'!$C50)=0,0,'Sledovanie úbytku hmotnosti'!$C50)),\"\")","v":0}]
[{"$f":"IF((LEN('Sledovanie úbytku hmotnosti'!$C51)=0),TRUE)","v":true},{"$f":"IFERROR(IF(A48,0,IF(LEN('Sledovanie úbytku hmotnosti'!$B51)=0,0,'Sledovanie úbytku hmotnosti'!$B51)),\"\")","v":"00:00:00"},{"$f":"IFERROR(IF(A48,0,IF(LEN('Sledovanie úbytku hmotnosti'!$C51)=0,0,'Sledovanie úbytku hmotnosti'!$C51)),\"\")","v":0}]
[{"$f":"IF((LEN('Sledovanie úbytku hmotnosti'!$C52)=0),TRUE)","v":true},{"$f":"IFERROR(IF(A49,0,IF(LEN('Sledovanie úbytku hmotnosti'!$B52)=0,0,'Sledovanie úbytku hmotnosti'!$B52)),\"\")","v":"00:00:00"},{"$f":"IFERROR(IF(A49,0,IF(LEN('Sledovanie úbytku hmotnosti'!$C52)=0,0,'Sledovanie úbytku hmotnosti'!$C52)),\"\")","v":0}]
[{"$f":"IF((LEN('Sledovanie úbytku hmotnosti'!$C53)=0),TRUE)","v":true},{"$f":"IFERROR(IF(A50,0,IF(LEN('Sledovanie úbytku hmotnosti'!$B53)=0,0,'Sledovanie úbytku hmotnosti'!$B53)),\"\")","v":"00:00:00"},{"$f":"IFERROR(IF(A50,0,IF(LEN('Sledovanie úbytku hmotnosti'!$C53)=0,0,'Sledovanie úbytku hmotnosti'!$C53)),\"\")","v":0}]
[{"$f":"IF((LEN('Sledovanie úbytku hmotnosti'!$C54)=0),TRUE)","v":true},{"$f":"IFERROR(IF(A51,0,IF(LEN('Sledovanie úbytku hmotnosti'!$B54)=0,0,'Sledovanie úbytku hmotnosti'!$B54)),\"\")","v":"00:00:00"},{"$f":"IFERROR(IF(A51,0,IF(LEN('Sledovanie úbytku hmotnosti'!$C54)=0,0,'Sledovanie úbytku hmotnosti'!$C54)),\"\")","v":0}]
[{"$f":"IF((LEN('Sledovanie úbytku hmotnosti'!$C55)=0),TRUE)","v":true},{"$f":"IFERROR(IF(A52,0,IF(LEN('Sledovanie úbytku hmotnosti'!$B55)=0,0,'Sledovanie úbytku hmotnosti'!$B55)),\"\")","v":"00:00:00"},{"$f":"IFERROR(IF(A52,0,IF(LEN('Sledovanie úbytku hmotnosti'!$C55)=0,0,'Sledovanie úbytku hmotnosti'!$C55)),\"\")","v":0}]
[{"$f":"IF((LEN('Sledovanie úbytku hmotnosti'!$C56)=0),TRUE)","v":true},{"$f":"IFERROR(IF(A53,0,IF(LEN('Sledovanie úbytku hmotnosti'!$B56)=0,0,'Sledovanie úbytku hmotnosti'!$B56)),\"\")","v":"00:00:00"},{"$f":"IFERROR(IF(A53,0,IF(LEN('Sledovanie úbytku hmotnosti'!$C56)=0,0,'Sledovanie úbytku hmotnosti'!$C56)),\"\")","v":0}]
[{"$f":"IF((LEN('Sledovanie úbytku hmotnosti'!$C57)=0),TRUE)","v":true},{"$f":"IFERROR(IF(A54,0,IF(LEN('Sledovanie úbytku hmotnosti'!$B57)=0,0,'Sledovanie úbytku hmotnosti'!$B57)),\"\")","v":"00:00:00"},{"$f":"IFERROR(IF(A54,0,IF(LEN('Sledovanie úbytku hmotnosti'!$C57)=0,0,'Sledovanie úbytku hmotnosti'!$C57)),\"\")","v":0}]
[{"$f":"IF((LEN('Sledovanie úbytku hmotnosti'!$C58)=0),TRUE)","v":true},{"$f":"IFERROR(IF(A55,0,IF(LEN('Sledovanie úbytku hmotnosti'!$B58)=0,0,'Sledovanie úbytku hmotnosti'!$B58)),\"\")","v":"00:00:00"},{"$f":"IFERROR(IF(A55,0,IF(LEN('Sledovanie úbytku hmotnosti'!$C58)=0,0,'Sledovanie úbytku hmotnosti'!$C58)),\"\")","v":0}]
[{"$f":"IF((LEN('Sledovanie úbytku hmotnosti'!$C59)=0),TRUE)","v":true},{"$f":"IFERROR(IF(A56,0,IF(LEN('Sledovanie úbytku hmotnosti'!$B59)=0,0,'Sledovanie úbytku hmotnosti'!$B59)),\"\")","v":"00:00:00"},{"$f":"IFERROR(IF(A56,0,IF(LEN('Sledovanie úbytku hmotnosti'!$C59)=0,0,'Sledovanie úbytku hmotnosti'!$C59)),\"\")","v":0}]
[{"$f":"IF((LEN('Sledovanie úbytku hmotnosti'!$C60)=0),TRUE)","v":true},{"$f":"IFERROR(IF(A57,0,IF(LEN('Sledovanie úbytku hmotnosti'!$B60)=0,0,'Sledovanie úbytku hmotnosti'!$B60)),\"\")","v":"00:00:00"},{"$f":"IFERROR(IF(A57,0,IF(LEN('Sledovanie úbytku hmotnosti'!$C60)=0,0,'Sledovanie úbytku hmotnosti'!$C60)),\"\")","v":0}]
[{"$f":"IF((LEN('Sledovanie úbytku hmotnosti'!$C61)=0),TRUE)","v":true},{"$f":"IFERROR(IF(A58,0,IF(LEN('Sledovanie úbytku hmotnosti'!$B61)=0,0,'Sledovanie úbytku hmotnosti'!$B61)),\"\")","v":"00:00:00"},{"$f":"IFERROR(IF(A58,0,IF(LEN('Sledovanie úbytku hmotnosti'!$C61)=0,0,'Sledovanie úbytku hmotnosti'!$C61)),\"\")","v":0}]
[{"$f":"IF((LEN('Sledovanie úbytku hmotnosti'!$C62)=0),TRUE)","v":true},{"$f":"IFERROR(IF(A59,0,IF(LEN('Sledovanie úbytku hmotnosti'!$B62)=0,0,'Sledovanie úbytku hmotnosti'!$B62)),\"\")","v":"00:00:00"},{"$f":"IFERROR(IF(A59,0,IF(LEN('Sledovanie úbytku hmotnosti'!$C62)=0,0,'Sledovanie úbytku hmotnosti'!$C62)),\"\")","v":0}]
[{"$f":"IF((LEN('Sledovanie úbytku hmotnosti'!$C63)=0),TRUE)","v":true},{"$f":"IFERROR(IF(A60,0,IF(LEN('Sledovanie úbytku hmotnosti'!$B63)=0,0,'Sledovanie úbytku hmotnosti'!$B63)),\"\")","v":"00:00:00"},{"$f":"IFERROR(IF(A60,0,IF(LEN('Sledovanie úbytku hmotnosti'!$C63)=0,0,'Sledovanie úbytku hmotnosti'!$C63)),\"\")","v":0}]
[{"$f":"IF((LEN('Sledovanie úbytku hmotnosti'!$C64)=0),TRUE)","v":true},{"$f":"IFERROR(IF(A61,0,IF(LEN('Sledovanie úbytku hmotnosti'!$B64)=0,0,'Sledovanie úbytku hmotnosti'!$B64)),\"\")","v":"00:00:00"},{"$f":"IFERROR(IF(A61,0,IF(LEN('Sledovanie úbytku hmotnosti'!$C64)=0,0,'Sledovanie úbytku hmotnosti'!$C64)),\"\")","v":0}]
[{"$f":"IF((LEN('Sledovanie úbytku hmotnosti'!$C65)=0),TRUE)","v":true},{"$f":"IFERROR(IF(A62,0,IF(LEN('Sledovanie úbytku hmotnosti'!$B65)=0,0,'Sledovanie úbytku hmotnosti'!$B65)),\"\")","v":"00:00:00"},{"$f":"IFERROR(IF(A62,0,IF(LEN('Sledovanie úbytku hmotnosti'!$C65)=0,0,'Sledovanie úbytku hmotnosti'!$C65)),\"\")","v":0}]
[{"$f":"IF((LEN('Sledovanie úbytku hmotnosti'!$C66)=0),TRUE)","v":true},{"$f":"IFERROR(IF(A63,0,IF(LEN('Sledovanie úbytku hmotnosti'!$B66)=0,0,'Sledovanie úbytku hmotnosti'!$B66)),\"\")","v":"00:00:00"},{"$f":"IFERROR(IF(A63,0,IF(LEN('Sledovanie úbytku hmotnosti'!$C66)=0,0,'Sledovanie úbytku hmotnosti'!$C66)),\"\")","v":0}]
[{"$f":"IF((LEN('Sledovanie úbytku hmotnosti'!$C67)=0),TRUE)","v":true},{"$f":"IFERROR(IF(A64,0,IF(LEN('Sledovanie úbytku hmotnosti'!$B67)=0,0,'Sledovanie úbytku hmotnosti'!$B67)),\"\")","v":"00:00:00"},{"$f":"IFERROR(IF(A64,0,IF(LEN('Sledovanie úbytku hmotnosti'!$C67)=0,0,'Sledovanie úbytku hmotnosti'!$C67)),\"\")","v":0}]
[{"$f":"IF((LEN('Sledovanie úbytku hmotnosti'!$C68)=0),TRUE)","v":true},{"$f":"IFERROR(IF(A65,0,IF(LEN('Sledovanie úbytku hmotnosti'!$B68)=0,0,'Sledovanie úbytku hmotnosti'!$B68)),\"\")","v":"00:00:00"},{"$f":"IFERROR(IF(A65,0,IF(LEN('Sledovanie úbytku hmotnosti'!$C68)=0,0,'Sledovanie úbytku hmotnosti'!$C68)),\"\")","v":0}]
[{"$f":"IF((LEN('Sledovanie úbytku hmotnosti'!$C69)=0),TRUE)","v":true},{"$f":"IFERROR(IF(A66,0,IF(LEN('Sledovanie úbytku hmotnosti'!$B69)=0,0,'Sledovanie úbytku hmotnosti'!$B69)),\"\")","v":"00:00:00"},{"$f":"IFERROR(IF(A66,0,IF(LEN('Sledovanie úbytku hmotnosti'!$C69)=0,0,'Sledovanie úbytku hmotnosti'!$C69)),\"\")","v":0}]
[{"$f":"IF((LEN('Sledovanie úbytku hmotnosti'!$C70)=0),TRUE)","v":true},{"$f":"IFERROR(IF(A67,0,IF(LEN('Sledovanie úbytku hmotnosti'!$B70)=0,0,'Sledovanie úbytku hmotnosti'!$B70)),\"\")","v":"00:00:00"},{"$f":"IFERROR(IF(A67,0,IF(LEN('Sledovanie úbytku hmotnosti'!$C70)=0,0,'Sledovanie úbytku hmotnosti'!$C70)),\"\")","v":0}]
[{"$f":"IF((LEN('Sledovanie úbytku hmotnosti'!$C71)=0),TRUE)","v":true},{"$f":"IFERROR(IF(A68,0,IF(LEN('Sledovanie úbytku hmotnosti'!$B71)=0,0,'Sledovanie úbytku hmotnosti'!$B71)),\"\")","v":"00:00:00"},{"$f":"IFERROR(IF(A68,0,IF(LEN('Sledovanie úbytku hmotnosti'!$C71)=0,0,'Sledovanie úbytku hmotnosti'!$C71)),\"\")","v":0}]
[{"$f":"IF((LEN('Sledovanie úbytku hmotnosti'!$C72)=0),TRUE)","v":true},{"$f":"IFERROR(IF(A69,0,IF(LEN('Sledovanie úbytku hmotnosti'!$B72)=0,0,'Sledovanie úbytku hmotnosti'!$B72)),\"\")","v":"00:00:00"},{"$f":"IFERROR(IF(A69,0,IF(LEN('Sledovanie úbytku hmotnosti'!$C72)=0,0,'Sledovanie úbytku hmotnosti'!$C72)),\"\")","v":0}]
[{"$f":"IF((LEN('Sledovanie úbytku hmotnosti'!$C73)=0),TRUE)","v":true},{"$f":"IFERROR(IF(A70,0,IF(LEN('Sledovanie úbytku hmotnosti'!$B73)=0,0,'Sledovanie úbytku hmotnosti'!$B73)),\"\")","v":"00:00:00"},{"$f":"IFERROR(IF(A70,0,IF(LEN('Sledovanie úbytku hmotnosti'!$C73)=0,0,'Sledovanie úbytku hmotnosti'!$C73)),\"\")","v":0}]
[{"$f":"IF((LEN('Sledovanie úbytku hmotnosti'!$C74)=0),TRUE)","v":true},{"$f":"IFERROR(IF(A71,0,IF(LEN('Sledovanie úbytku hmotnosti'!$B74)=0,0,'Sledovanie úbytku hmotnosti'!$B74)),\"\")","v":"00:00:00"},{"$f":"IFERROR(IF(A71,0,IF(LEN('Sledovanie úbytku hmotnosti'!$C74)=0,0,'Sledovanie úbytku hmotnosti'!$C74)),\"\")","v":0}]
[{"$f":"IF((LEN('Sledovanie úbytku hmotnosti'!$C75)=0),TRUE)","v":true},{"$f":"IFERROR(IF(A72,0,IF(LEN('Sledovanie úbytku hmotnosti'!$B75)=0,0,'Sledovanie úbytku hmotnosti'!$B75)),\"\")","v":"00:00:00"},{"$f":"IFERROR(IF(A72,0,IF(LEN('Sledovanie úbytku hmotnosti'!$C75)=0,0,'Sledovanie úbytku hmotnosti'!$C75)),\"\")","v":0}]
[{"$f":"IF((LEN('Sledovanie úbytku hmotnosti'!$C76)=0),TRUE)","v":true},{"$f":"IFERROR(IF(A73,0,IF(LEN('Sledovanie úbytku hmotnosti'!$B76)=0,0,'Sledovanie úbytku hmotnosti'!$B76)),\"\")","v":"00:00:00"},{"$f":"IFERROR(IF(A73,0,IF(LEN('Sledovanie úbytku hmotnosti'!$C76)=0,0,'Sledovanie úbytku hmotnosti'!$C76)),\"\")","v":0}]
[{"$f":"IF((LEN('Sledovanie úbytku hmotnosti'!$C77)=0),TRUE)","v":true},{"$f":"IFERROR(IF(A74,0,IF(LEN('Sledovanie úbytku hmotnosti'!$B77)=0,0,'Sledovanie úbytku hmotnosti'!$B77)),\"\")","v":"00:00:00"},{"$f":"IFERROR(IF(A74,0,IF(LEN('Sledovanie úbytku hmotnosti'!$C77)=0,0,'Sledovanie úbytku hmotnosti'!$C77)),\"\")","v":0}]
[{"$f":"IF((LEN('Sledovanie úbytku hmotnosti'!$C78)=0),TRUE)","v":true},{"$f":"IFERROR(IF(A75,0,IF(LEN('Sledovanie úbytku hmotnosti'!$B78)=0,0,'Sledovanie úbytku hmotnosti'!$B78)),\"\")","v":"00:00:00"},{"$f":"IFERROR(IF(A75,0,IF(LEN('Sledovanie úbytku hmotnosti'!$C78)=0,0,'Sledovanie úbytku hmotnosti'!$C78)),\"\")","v":0}]
[{"$f":"IF((LEN('Sledovanie úbytku hmotnosti'!$C79)=0),TRUE)","v":true},{"$f":"IFERROR(IF(A76,0,IF(LEN('Sledovanie úbytku hmotnosti'!$B79)=0,0,'Sledovanie úbytku hmotnosti'!$B79)),\"\")","v":"00:00:00"},{"$f":"IFERROR(IF(A76,0,IF(LEN('Sledovanie úbytku hmotnosti'!$C79)=0,0,'Sledovanie úbytku hmotnosti'!$C79)),\"\")","v":0}]
[{"$f":"IF((LEN('Sledovanie úbytku hmotnosti'!$C80)=0),TRUE)","v":true},{"$f":"IFERROR(IF(A77,0,IF(LEN('Sledovanie úbytku hmotnosti'!$B80)=0,0,'Sledovanie úbytku hmotnosti'!$B80)),\"\")","v":"00:00:00"},{"$f":"IFERROR(IF(A77,0,IF(LEN('Sledovanie úbytku hmotnosti'!$C80)=0,0,'Sledovanie úbytku hmotnosti'!$C80)),\"\")","v":0}]
[{"$f":"IF((LEN('Sledovanie úbytku hmotnosti'!$C81)=0),TRUE)","v":true},{"$f":"IFERROR(IF(A78,0,IF(LEN('Sledovanie úbytku hmotnosti'!$B81)=0,0,'Sledovanie úbytku hmotnosti'!$B81)),\"\")","v":"00:00:00"},{"$f":"IFERROR(IF(A78,0,IF(LEN('Sledovanie úbytku hmotnosti'!$C81)=0,0,'Sledovanie úbytku hmotnosti'!$C81)),\"\")","v":0}]
[{"$f":"IF((LEN('Sledovanie úbytku hmotnosti'!$C82)=0),TRUE)","v":true},{"$f":"IFERROR(IF(A79,0,IF(LEN('Sledovanie úbytku hmotnosti'!$B82)=0,0,'Sledovanie úbytku hmotnosti'!$B82)),\"\")","v":"00:00:00"},{"$f":"IFERROR(IF(A79,0,IF(LEN('Sledovanie úbytku hmotnosti'!$C82)=0,0,'Sledovanie úbytku hmotnosti'!$C82)),\"\")","v":0}]
[{"$f":"IF((LEN('Sledovanie úbytku hmotnosti'!$C83)=0),TRUE)","v":true},{"$f":"IFERROR(IF(A80,0,IF(LEN('Sledovanie úbytku hmotnosti'!$B83)=0,0,'Sledovanie úbytku hmotnosti'!$B83)),\"\")","v":"00:00:00"},{"$f":"IFERROR(IF(A80,0,IF(LEN('Sledovanie úbytku hmotnosti'!$C83)=0,0,'Sledovanie úbytku hmotnosti'!$C83)),\"\")","v":0}]
[{"$f":"IF((LEN('Sledovanie úbytku hmotnosti'!$C84)=0),TRUE)","v":true},{"$f":"IFERROR(IF(A81,0,IF(LEN('Sledovanie úbytku hmotnosti'!$B84)=0,0,'Sledovanie úbytku hmotnosti'!$B84)),\"\")","v":"00:00:00"},{"$f":"IFERROR(IF(A81,0,IF(LEN('Sledovanie úbytku hmotnosti'!$C84)=0,0,'Sledovanie úbytku hmotnosti'!$C84)),\"\")","v":0}]
[{"$f":"IF((LEN('Sledovanie úbytku hmotnosti'!$C85)=0),TRUE)","v":true},{"$f":"IFERROR(IF(A82,0,IF(LEN('Sledovanie úbytku hmotnosti'!$B85)=0,0,'Sledovanie úbytku hmotnosti'!$B85)),\"\")","v":"00:00:00"},{"$f":"IFERROR(IF(A82,0,IF(LEN('Sledovanie úbytku hmotnosti'!$C85)=0,0,'Sledovanie úbytku hmotnosti'!$C85)),\"\")","v":0}]
[{"$f":"IF((LEN('Sledovanie úbytku hmotnosti'!$C86)=0),TRUE)","v":true},{"$f":"IFERROR(IF(A83,0,IF(LEN('Sledovanie úbytku hmotnosti'!$B86)=0,0,'Sledovanie úbytku hmotnosti'!$B86)),\"\")","v":"00:00:00"},{"$f":"IFERROR(IF(A83,0,IF(LEN('Sledovanie úbytku hmotnosti'!$C86)=0,0,'Sledovanie úbytku hmotnosti'!$C86)),\"\")","v":0}]
[{"$f":"IF((LEN('Sledovanie úbytku hmotnosti'!$C87)=0),TRUE)","v":true},{"$f":"IFERROR(IF(A84,0,IF(LEN('Sledovanie úbytku hmotnosti'!$B87)=0,0,'Sledovanie úbytku hmotnosti'!$B87)),\"\")","v":"00:00:00"},{"$f":"IFERROR(IF(A84,0,IF(LEN('Sledovanie úbytku hmotnosti'!$C87)=0,0,'Sledovanie úbytku hmotnosti'!$C87)),\"\")","v":0}]
[{"$f":"IF((LEN('Sledovanie úbytku hmotnosti'!$C88)=0),TRUE)","v":true},{"$f":"IFERROR(IF(A85,0,IF(LEN('Sledovanie úbytku hmotnosti'!$B88)=0,0,'Sledovanie úbytku hmotnosti'!$B88)),\"\")","v":"00:00:00"},{"$f":"IFERROR(IF(A85,0,IF(LEN('Sledovanie úbytku hmotnosti'!$C88)=0,0,'Sledovanie úbytku hmotnosti'!$C88)),\"\")","v":0}]
[{"$f":"IF((LEN('Sledovanie úbytku hmotnosti'!$C89)=0),TRUE)","v":true},{"$f":"IFERROR(IF(A86,0,IF(LEN('Sledovanie úbytku hmotnosti'!$B89)=0,0,'Sledovanie úbytku hmotnosti'!$B89)),\"\")","v":"00:00:00"},{"$f":"IFERROR(IF(A86,0,IF(LEN('Sledovanie úbytku hmotnosti'!$C89)=0,0,'Sledovanie úbytku hmotnosti'!$C89)),\"\")","v":0}]
[{"$f":"IF((LEN('Sledovanie úbytku hmotnosti'!$C90)=0),TRUE)","v":true},{"$f":"IFERROR(IF(A87,0,IF(LEN('Sledovanie úbytku hmotnosti'!$B90)=0,0,'Sledovanie úbytku hmotnosti'!$B90)),\"\")","v":"00:00:00"},{"$f":"IFERROR(IF(A87,0,IF(LEN('Sledovanie úbytku hmotnosti'!$C90)=0,0,'Sledovanie úbytku hmotnosti'!$C90)),\"\")","v":0}]
[{"$f":"IF((LEN('Sledovanie úbytku hmotnosti'!$C91)=0),TRUE)","v":true},{"$f":"IFERROR(IF(A88,0,IF(LEN('Sledovanie úbytku hmotnosti'!$B91)=0,0,'Sledovanie úbytku hmotnosti'!$B91)),\"\")","v":"00:00:00"},{"$f":"IFERROR(IF(A88,0,IF(LEN('Sledovanie úbytku hmotnosti'!$C91)=0,0,'Sledovanie úbytku hmotnosti'!$C91)),\"\")","v":0}]
[{"$f":"IF((LEN('Sledovanie úbytku hmotnosti'!$C92)=0),TRUE)","v":true},{"$f":"IFERROR(IF(A89,0,IF(LEN('Sledovanie úbytku hmotnosti'!$B92)=0,0,'Sledovanie úbytku hmotnosti'!$B92)),\"\")","v":"00:00:00"},{"$f":"IFERROR(IF(A89,0,IF(LEN('Sledovanie úbytku hmotnosti'!$C92)=0,0,'Sledovanie úbytku hmotnosti'!$C92)),\"\")","v":0}]
[{"$f":"IF((LEN('Sledovanie úbytku hmotnosti'!$C93)=0),TRUE)","v":true},{"$f":"IFERROR(IF(A90,0,IF(LEN('Sledovanie úbytku hmotnosti'!$B93)=0,0,'Sledovanie úbytku hmotnosti'!$B93)),\"\")","v":"00:00:00"},{"$f":"IFERROR(IF(A90,0,IF(LEN('Sledovanie úbytku hmotnosti'!$C93)=0,0,'Sledovanie úbytku hmotnosti'!$C93)),\"\")","v":0}]
[{"$f":"IF((LEN('Sledovanie úbytku hmotnosti'!$C94)=0),TRUE)","v":true},{"$f":"IFERROR(IF(A91,0,IF(LEN('Sledovanie úbytku hmotnosti'!$B94)=0,0,'Sledovanie úbytku hmotnosti'!$B94)),\"\")","v":"00:00:00"},{"$f":"IFERROR(IF(A91,0,IF(LEN('Sledovanie úbytku hmotnosti'!$C94)=0,0,'Sledovanie úbytku hmotnosti'!$C94)),\"\")","v":0}]
[{"$f":"IF((LEN('Sledovanie úbytku hmotnosti'!$C95)=0),TRUE)","v":true},{"$f":"IFERROR(IF(A92,0,IF(LEN('Sledovanie úbytku hmotnosti'!$B95)=0,0,'Sledovanie úbytku hmotnosti'!$B95)),\"\")","v":"00:00:00"},{"$f":"IFERROR(IF(A92,0,IF(LEN('Sledovanie úbytku hmotnosti'!$C95)=0,0,'Sledovanie úbytku hmotnosti'!$C95)),\"\")","v":0}]
[{"$f":"IF((LEN('Sledovanie úbytku hmotnosti'!$C96)=0),TRUE)","v":true},{"$f":"IFERROR(IF(A93,0,IF(LEN('Sledovanie úbytku hmotnosti'!$B96)=0,0,'Sledovanie úbytku hmotnosti'!$B96)),\"\")","v":"00:00:00"},{"$f":"IFERROR(IF(A93,0,IF(LEN('Sledovanie úbytku hmotnosti'!$C96)=0,0,'Sledovanie úbytku hmotnosti'!$C96)),\"\")","v":0}]
[{"$f":"IF((LEN('Sledovanie úbytku hmotnosti'!$C97)=0),TRUE)","v":true},{"$f":"IFERROR(IF(A94,0,IF(LEN('Sledovanie úbytku hmotnosti'!$B97)=0,0,'Sledovanie úbytku hmotnosti'!$B97)),\"\")","v":"00:00:00"},{"$f":"IFERROR(IF(A94,0,IF(LEN('Sledovanie úbytku hmotnosti'!$C97)=0,0,'Sledovanie úbytku hmotnosti'!$C97)),\"\")","v":0}]
[{"$f":"IF((LEN('Sledovanie úbytku hmotnosti'!$C98)=0),TRUE)","v":true},{"$f":"IFERROR(IF(A95,0,IF(LEN('Sledovanie úbytku hmotnosti'!$B98)=0,0,'Sledovanie úbytku hmotnosti'!$B98)),\"\")","v":"00:00:00"},{"$f":"IFERROR(IF(A95,0,IF(LEN('Sledovanie úbytku hmotnosti'!$C98)=0,0,'Sledovanie úbytku hmotnosti'!$C98)),\"\")","v":0}]
[{"$f":"IF((LEN('Sledovanie úbytku hmotnosti'!$C99)=0),TRUE)","v":true},{"$f":"IFERROR(IF(A96,0,IF(LEN('Sledovanie úbytku hmotnosti'!$B99)=0,0,'Sledovanie úbytku hmotnosti'!$B99)),\"\")","v":"00:00:00"},{"$f":"IFERROR(IF(A96,0,IF(LEN('Sledovanie úbytku hmotnosti'!$C99)=0,0,'Sledovanie úbytku hmotnosti'!$C99)),\"\")","v":0}]
[{"$f":"IF((LEN('Sledovanie úbytku hmotnosti'!$C100)=0),TRUE)","v":true},{"$f":"IFERROR(IF(A97,0,IF(LEN('Sledovanie úbytku hmotnosti'!$B100)=0,0,'Sledovanie úbytku hmotnosti'!$B100)),\"\")","v":"00:00:00"},{"$f":"IFERROR(IF(A97,0,IF(LEN('Sledovanie úbytku hmotnosti'!$C100)=0,0,'Sledovanie úbytku hmotnosti'!$C100)),\"\")","v":0}]
[{"$f":"IF((LEN('Sledovanie úbytku hmotnosti'!$C101)=0),TRUE)","v":true},{"$f":"IFERROR(IF(A98,0,IF(LEN('Sledovanie úbytku hmotnosti'!$B101)=0,0,'Sledovanie úbytku hmotnosti'!$B101)),\"\")","v":"00:00:00"},{"$f":"IFERROR(IF(A98,0,IF(LEN('Sledovanie úbytku hmotnosti'!$C101)=0,0,'Sledovanie úbytku hmotnosti'!$C101)),\"\")","v":0}]
[{"$f":"IF((LEN('Sledovanie úbytku hmotnosti'!$C102)=0),TRUE)","v":true},{"$f":"IFERROR(IF(A99,0,IF(LEN('Sledovanie úbytku hmotnosti'!$B102)=0,0,'Sledovanie úbytku hmotnosti'!$B102)),\"\")","v":"00:00:00"},{"$f":"IFERROR(IF(A99,0,IF(LEN('Sledovanie úbytku hmotnosti'!$C102)=0,0,'Sledovanie úbytku hmotnosti'!$C102)),\"\")","v":0}]
[{"$f":"IF((LEN('Sledovanie úbytku hmotnosti'!$C103)=0),TRUE)","v":true},{"$f":"IFERROR(IF(A100,0,IF(LEN('Sledovanie úbytku hmotnosti'!$B103)=0,0,'Sledovanie úbytku hmotnosti'!$B103)),\"\")","v":"00:00:00"},{"$f":"IFERROR(IF(A100,0,IF(LEN('Sledovanie úbytku hmotnosti'!$C103)=0,0,'Sledovanie úbytku hmotnosti'!$C103)),\"\")","v":0}]
[{"$f":"IF((LEN('Sledovanie úbytku hmotnosti'!$C104)=0),TRUE)","v":true},{"$f":"IFERROR(IF(A101,0,IF(LEN('Sledovanie úbytku hmotnosti'!$B104)=0,0,'Sledovanie úbytku hmotnosti'!$B104)),\"\")","v":"00:00:00"},{"$f":"IFERROR(IF(A101,0,IF(LEN('Sledovanie úbytku hmotnosti'!$C104)=0,0,'Sledovanie úbytku hmotnosti'!$C104)),\"\")","v":0}]
[{"$f":"IF((LEN('Sledovanie úbytku hmotnosti'!$C105)=0),TRUE)","v":true},{"$f":"IFERROR(IF(A102,0,IF(LEN('Sledovanie úbytku hmotnosti'!$B105)=0,0,'Sledovanie úbytku hmotnosti'!$B105)),\"\")","v":"00:00:00"},{"$f":"IFERROR(IF(A102,0,IF(LEN('Sledovanie úbytku hmotnosti'!$C105)=0,0,'Sledovanie úbytku hmotnosti'!$C105)),\"\")","v":0}]
[{"$f":"IF((LEN('Sledovanie úbytku hmotnosti'!$C106)=0),TRUE)","v":true},{"$f":"IFERROR(IF(A103,0,IF(LEN('Sledovanie úbytku hmotnosti'!$B106)=0,0,'Sledovanie úbytku hmotnosti'!$B106)),\"\")","v":"00:00:00"},{"$f":"IFERROR(IF(A103,0,IF(LEN('Sledovanie úbytku hmotnosti'!$C106)=0,0,'Sledovanie úbytku hmotnosti'!$C106)),\"\")","v":0}]
[{"$f":"IF((LEN('Sledovanie úbytku hmotnosti'!$C107)=0),TRUE)","v":true},{"$f":"IFERROR(IF(A104,0,IF(LEN('Sledovanie úbytku hmotnosti'!$B107)=0,0,'Sledovanie úbytku hmotnosti'!$B107)),\"\")","v":"00:00:00"},{"$f":"IFERROR(IF(A104,0,IF(LEN('Sledovanie úbytku hmotnosti'!$C107)=0,0,'Sledovanie úbytku hmotnosti'!$C107)),\"\")","v":0}]
[{"$f":"IF((LEN('Sledovanie úbytku hmotnosti'!$C108)=0),TRUE)","v":true},{"$f":"IFERROR(IF(A105,0,IF(LEN('Sledovanie úbytku hmotnosti'!$B108)=0,0,'Sledovanie úbytku hmotnosti'!$B108)),\"\")","v":"00:00:00"},{"$f":"IFERROR(IF(A105,0,IF(LEN('Sledovanie úbytku hmotnosti'!$C108)=0,0,'Sledovanie úbytku hmotnosti'!$C108)),\"\")","v":0}]
[{"$f":"IF((LEN('Sledovanie úbytku hmotnosti'!$C109)=0),TRUE)","v":true},{"$f":"IFERROR(IF(A106,0,IF(LEN('Sledovanie úbytku hmotnosti'!$B109)=0,0,'Sledovanie úbytku hmotnosti'!$B109)),\"\")","v":"00:00:00"},{"$f":"IFERROR(IF(A106,0,IF(LEN('Sledovanie úbytku hmotnosti'!$C109)=0,0,'Sledovanie úbytku hmotnosti'!$C109)),\"\")","v":0}]
[{"$f":"IF((LEN('Sledovanie úbytku hmotnosti'!$C110)=0),TRUE)","v":true},{"$f":"IFERROR(IF(A107,0,IF(LEN('Sledovanie úbytku hmotnosti'!$B110)=0,0,'Sledovanie úbytku hmotnosti'!$B110)),\"\")","v":"00:00:00"},{"$f":"IFERROR(IF(A107,0,IF(LEN('Sledovanie úbytku hmotnosti'!$C110)=0,0,'Sledovanie úbytku hmotnosti'!$C110)),\"\")","v":0}]